fUSD/lending_fUSD_20251027
["ID","MTS","AMOUNT","RATE_DAILY","PERIOD"]
[392476089,1761540554046,-500.0,0.00034961,7]
[392476090,1761540554072,-500.0,0.00034961,7]
[392476091,1761540554096,-500.0,0.00034961,7]
[392476092,1761540554119,-500.0,0.00034961,7]
[392476093,1761540554142,-500.0,0.00034961,7]
[392476094,1761540554165,-500.0,0.00034961,7]
[392476095,1761540554188,-500.0,0.00034961,7]
[392476096,1761540554211,-500.0,0.00034961,7]
[392476097,1761540554233,-500.0,0.00034961,7]
[392476098,1761540554256,-1600.0,0.00034962,2]
[392476099,1761540554276,-2720.0,0.00034962,2]
[392476100,1761540554299,-2501.0,0.00034962,2]
[392476101,1761540554321,-150.0,0.00034964,4]
[392476102,1761540554341,-150.0,0.00034964,4]
[392476103,1761540554361,-150.0,0.00034964,4]
[392476104,1761540554381,-152.22718871,0.00034964,4]
[392476105,1761540554402,-166.06212231,0.00034964,4]
[392476106,1761540554422,-158.66111158,0.00034964,4]
[392476107,1761540554442,-155.10455661,0.00034964,4]
[392476108,1761540554462,-152.18926861,0.00034964,4]
[392476109,1761540554482,-153.73969324,0.00034964,4]
[392476110,1761540554502,-286.65334943,0.00034964,4]
[392476111,1761540554521,-47.84576896,0.00034964,4]
[392476115,1761540631936,-195.0,0.00034411,120]
[392476116,1761540631946,-96.38784597,0.00034961,2]
[392476117,1761540631958,-55.82425833,0.00034961,2]
[392476118,1761540631967,-104.98074112,0.00034964,4]
[392476119,1761540631976,-152.848161,0.00034964,4]
[392476120,1761540631984,-151.25982263,0.00034964,4]
[392476121,1761540631993,-155.31439502,0.00034964,4]
[392476122,1761540632002,-150.0,0.00034964,4]
[392476123,1761540632011,-2240.0,0.00035456,3]
[392476124,1761540632020,-195.0,0.00035695,120]
[392476125,1761540632029,-250.0,0.00036299,2]
[392476126,1761540632037,-400.0,0.00036299,3]
[392476127,1761540632046,-400.0,0.00036299,3]
[392476128,1761540632055,-1600.0,0.00036299,3]
[392476129,1761540632063,-400.0,0.00036299,2]
[392476130,1761540632072,-538.8287842,0.000363,120]
[392476131,1761540632083,-299.99,0.000363,120]
[392476132,1761540632093,-4161.1812158,0.000363,120]
[392476133,1761540632102,-195.0,0.000363,120]
[392476134,1761540632111,-250.0,0.000363,2]
[392476135,1761540632120,-300.0,0.000363,120]
[392476136,1761540632128,-252.31631549,0.000363,120]
[392476137,1761540632139,-500.0,0.000363,120]
[392476138,1761540632150,-461.76424935,0.000363,120]
[392476139,1761540632159,-195.0,0.000363,120]
[392476140,1761540632168,-2273.89,0.00036758,2]
[392476141,1761540632178,-215.18,0.00036835,2]
[392476142,1761540632186,-254.59,0.00036908,2]
[392476143,1761540632195,-9999.99,0.00037067,2]
[392476144,1761540632205,-150.99,0.00037067,2]
[392476145,1761540632214,-9999.99,0.00037067,2]
[392476146,1761540632223,-9790.16,0.00037067,2]
[392476147,1761540632232,-195.0,0.00037243,120]
[392476148,1761540632242,-476.74869043,0.00037397,2]
[392476149,1761540632251,-278.71,0.00037399,2]
[392476150,1761540632260,-151.66,0.00037547,30]
[392476151,1761540632270,-337.16386093,0.00037635,2]
[392476152,1761540632279,-151.0,0.0003785,2]
[392476153,1761540632291,-186.84061493,0.00037871,49]
[392476154,1761540632300,-257.0365,0.00037881,2]
[392476155,1761540632310,-1096.24,0.00038078,2]
[392476156,1761540632319,-301.04,0.00038078,2]
[392476157,1761540632330,-3135.0,0.00038095,3]
[392476158,1761540632339,-250.0,0.00038361,2]
[392476159,1761540632348,-525.59795,0.0003847,2]
[392476160,1761540632359,-232.3164481,0.00038606,2]
[392476161,1761540632369,-525.59795,0.0003868,2]
[392476162,1761540632378,-844.63213478,0.00038748,11]
[392476163,1761540632387,-165.14074576,0.00038748,15]
[392476164,1761540632397,-190.27,0.00038752,30]
[392476165,1761540632406,-318.95894514,0.00038754,15]
[392476166,1761540632415,-163.6590327,0.00038758,12]
[392476168,1761540632424,-164.55055547,0.00038758,2]
[392476170,1761540632433,-208.19864457,0.00038758,2]
[392476172,1761540632442,-274.84490848,0.00038758,2]
[392476174,1761540632451,-316.0,0.00038815,7]
[392476176,1761540632460,-4913.5996495,0.00038836,2]
[392476177,1761540632469,-80643.9401159,0.00038838,4]
[392476178,1761540632479,-1041.1700861,0.00038844,2]
[392476179,1761540632488,-160.721686,0.00038847,2]
[392476180,1761540632497,-19434.3216007,0.00038847,2]
[392476181,1761540632506,-1307.6880649,0.00038847,2]
[392476182,1761540632515,-14165.9210706,0.00038848,2]
[392476183,1761540632524,-151.02,0.00038848,2]
[392476184,1761540632533,-151.02,0.00038848,2]
[392476185,1761540632543,-151.02,0.00038848,2]
[392476186,1761540632551,-151.02,0.00038848,2]
[392476187,1761540632560,-151.02,0.00038848,2]
[392476188,1761540632569,-151.02,0.00038848,2]
[392476189,1761540632578,-151.02,0.00038848,2]
[392476190,1761540632587,-151.02,0.00038848,2]
[392476191,1761540632596,-151.02,0.00038848,2]
[392476192,1761540632605,-151.02,0.00038848,2]
[392476193,1761540632615,-151.02,0.00038848,2]
[392476194,1761540632624,-151.02,0.00038848,2]
[392476195,1761540632633,-151.02,0.00038848,2]
[392476196,1761540632642,-151.02,0.00038848,2]
[392476197,1761540632651,-151.02,0.00038848,2]
[392476198,1761540632660,-151.02,0.00038848,2]
[392476199,1761540632669,-151.02,0.00038848,2]
[392476200,1761540632679,-151.02,0.00038848,2]
[392476201,1761540632688,-151.02,0.00038848,2]
[392476202,1761540632697,-151.02,0.00038848,2]
[392476203,1761540632706,-151.02,0.00038848,2]
[392476204,1761540632716,-151.02,0.00038848,2]
[392476205,1761540632726,-151.02,0.00038848,2]
[392476206,1761540632735,-151.02,0.00038848,2]
[392476207,1761540632744,-151.02,0.00038848,2]
[392476208,1761540632753,-151.02,0.00038848,2]
[392476209,1761540632763,-151.02,0.00038848,2]
[392476210,1761540632772,-151.02,0.00038848,2]
[392476211,1761540632781,-151.02,0.00038848,2]
[392476212,1761540632791,-151.02,0.00038848,2]
[392476213,1761540632800,-151.02,0.00038848,2]
[392476214,1761540632809,-151.02,0.00038848,2]
[392476215,1761540632819,-151.02,0.00038848,2]
[392476216,1761540632828,-13545.8882205,0.00038856,2]
[392476217,1761540632838,-188.48633379,0.00038857,30]
[392476218,1761540632847,-421.578,0.00038857,5]
[392476219,1761540632856,-200.0,0.00038858,2]
[392476220,1761540632866,-525.59796,0.00038858,2]
[392476221,1761540632875,-2696.62065754,0.00038858,31]
[392476222,1761540632884,-84369.13004484,0.00038858,50]
[392476223,1761540632896,-2943.47194942,0.00038858,50]
[392476224,1761540637880,-500.0,0.00037066,15]
[392476225,1761540637890,-500.0,0.00037066,15]
[392476226,1761540637900,-500.0,0.00037066,15]
[392476227,1761540637910,-500.0,0.00037066,15]
[392476228,1761540637919,-500.0,0.00037066,15]
[392476229,1761540637929,-500.0,0.00037066,15]
[392476230,1761540637939,-301.36975454,0.00037066,15]
[392476231,1761540637948,-500.0,0.00037066,15]
[392476232,1761540637959,-500.0,0.00037066,15]
[392476233,1761540637970,-500.0,0.00037066,15]
[392476234,1761540637981,-3224.17303348,0.00038747,2]
[392476235,1761540638003,-223.2712616,0.00038846,15]
[392476236,1761540638018,-25128.1262024,0.00038858,50]
[392476476,1761540640180,-48897.00260098,0.00038858,50]
[392476486,1761540640218,-746.60779973,0.00038748,2]
[392476524,1761540640402,-744.38892175,0.00038748,2]
[392476528,1761540640415,-1733.176312,0.00038748,2]
[392476530,1761540640424,-526.10841322,0.00038758,13]
[392476533,1761540640433,-2188984.13040695,0.00038858,50]
[392476537,1761540640443,-70268.71904941,0.00038858,50]
[392476641,1761540640991,-1.6e-07,0.00038858,50]
[392476644,1761540641002,-2744508.54767689,0.00038858,50]
[392476647,1761540641010,-1652925.05179294,0.00038858,50]
[392477395,1761540646255,-3224.17303348,0.00038749,2]
[392477398,1761540646266,-894.23251688,0.00038758,2]
[392477400,1761540646276,-10508.1883107,0.00038858,50]
[392477402,1761540646287,-9303.99871916,0.00038858,50]
[392477917,1761540929264,-150.0,0.00031102,2]
[392477918,1761540929286,-175.36401277,0.000329,2]
[392477919,1761540930947,-266.33561743,0.000329,2]
[392477920,1761540934616,-329.2281422,0.000329,2]
[392477921,1761540936346,-161.21245878,0.000329,2]
[392477922,1761540938602,-275.29739262,0.000329,2]
[392477923,1761540940635,-186.1103775,0.000329,2]
[392477924,1761540942439,-174.3511692,0.000329,2]
[392477925,1761540946060,-170.84819843,0.000329,2]
[392477926,1761540949270,-229.15180157,0.000329,2]
[392477927,1761540952631,-169.93632099,0.000329,2]
[392477928,1761540954777,-153.0,0.000329,2]
[392477929,1761540960655,250.0,0.00025109,2]
[392477930,1761540981483,1211.45,0.00018497,2]
[392477931,1761540981680,1211.45,0.00019471,2]
[392477932,1761540981880,1211.45,0.00020444,2]
[392477933,1761540982081,1211.45,0.00021418,2]
[392477934,1761540982300,1076.92158722,0.00022391,2]
[392477935,1761540982326,134.52841278,0.00022391,2]
[392477936,1761540982495,1211.45,0.00023365,2]
[392477937,1761540982702,1211.45,0.00024338,2]
[392477938,1761540989149,-183.0,0.00025312,2]
[392477939,1761540992038,-246.93165103,0.00025312,2]
[392477940,1761540995228,-213.39879437,0.00025312,2]
[392477941,1761540998106,-177.17644981,0.00025312,2]
[392477942,1761540999652,-390.94310479,0.00025312,2]
[392477943,1761540999677,-40.3830677,0.00026285,2]
[392477944,1761541018602,-357.09,0.00026285,2]
[392477945,1761541020459,-272.5191036,0.00026285,2]
[392477946,1761541023930,-203.03436496,0.00026285,2]
[392477947,1761541027589,-265.79000233,0.00026285,2]
[392477948,1761541029849,-72.63346141,0.00026285,2]
[392477949,1761541029875,-296.56539022,0.00027259,2]
[392477950,1761541031416,-173.59118698,0.00027259,2]
[392477951,1761541034320,-233.43304199,0.00027259,2]
[392477952,1761541036663,-431.478466,0.00027259,2]
[392477953,1761541038492,-76.38191481,0.00027259,2]
[392477954,1761541038516,-169.31906304,0.00028232,2]
[392477955,1761541040116,-179.50218907,0.00028232,2]
[392477956,1761541042301,-296.71355963,0.00028232,2]
[392477957,1761541044523,-262.8694312,0.00028232,2]
[392477958,1761541046265,-172.40135554,0.00028232,2]
[392477959,1761541048388,-130.64440152,0.00028232,2]
[392477960,1761541048412,-179.89119261,0.00029206,2]
[392477961,1761541053317,-396.55695801,0.00029206,2]
[392477962,1761541056858,-162.55040193,0.00029206,2]
[392477963,1761541061267,-300.0,0.00029206,2]
[392477964,1761541063522,-172.45144745,0.00029206,2]
[392477965,1761541063544,-92.95681757,0.00029985,30]
[392477966,1761541065138,-186.35000016,0.00029985,30]
[392477967,1761541066994,-24.41768162,0.00029985,30]
[392477968,1761541067019,-142.93052593,0.00030179,2]
[392477969,1761541068765,-189.72,0.00030179,2]
[392477970,1761541070655,-270.06024962,0.00030179,2]
[392477971,1761541073345,-254.95261105,0.00030179,2]
[392477972,1761541077915,-353.7866134,0.00030179,2]
[392477973,1761541077943,-7.08690379,0.00031153,2]
[392477974,1761541080274,-229.34319529,0.00031153,2]
[392477975,1761541081950,-378.94755823,0.00031153,2]
[392477976,1761541084907,-340.71947679,0.00031153,2]
[392477977,1761541086679,-166.52519143,0.00031153,2]
[392477978,1761541090143,-88.82767447,0.00031153,2]
[392477979,1761541090166,-211.97345074,0.0003164,120]
[392477980,1761541093184,-178.01578322,0.0003164,120]
[392477981,1761541095326,-313.46625104,0.0003164,120]
[392477982,1761541097044,-179.42433632,0.0003164,120]
[392477983,1761541099618,-371.75753306,0.0003164,120]
[392477984,1761541101748,-177.74955,0.0003164,120]
[392477985,1761541104741,-237.30421678,0.0003164,120]
[392477986,1761541108854,-228.4215338,0.0003164,120]
[392477987,1761541111737,-202.28175796,0.0003164,120]
[392477988,1761541114152,-235.34959081,0.0003164,120]
[392477989,1761541139596,-225.8392748,0.0002895,2]
[392477990,1761541139618,-122.17845997,0.0003164,120]
[392477991,1761541183595,-178.84559996,0.00029244,2]
[392477992,1761541185777,-322.5282868,0.00029244,2]
[392477993,1761541188425,-161.99298482,0.00029244,2]
[392477994,1761541190178,-189.89601949,0.00029244,2]
[392477995,1761541194845,-162.76987419,0.00029244,2]
[392477996,1761541196677,-196.56359566,0.00029244,2]
[392477997,1761541213606,-456.06701418,0.00029244,2]
[392477998,1761541216504,-219.95961189,0.00029244,2]
[392477999,1761541218219,-163.7874341,0.00029244,2]
[392478000,1761541222424,-13.85520301,0.00029244,2]
[392478001,1761541222446,-286.14479699,0.00029698,2]
[392478002,1761541225345,-280.04038811,0.00029698,2]
[392478003,1761541227559,-183.00646124,0.00029698,2]
[392478004,1761541241233,1500.0,0.00038973,50]
[392478005,1761541258535,-175.03492136,0.00029698,2]
[392478006,1761541258558,-197.97737201,0.00031481,2]
[392478007,1761541260460,-222.41910233,0.00031481,2]
[392478008,1761541262190,-229.44732824,0.00031481,2]
[392478009,1761541265691,-163.60242005,0.00031481,2]
[392478010,1761541269095,-261.99,0.00031481,2]
[392478011,1761541273171,-174.40757995,0.00031481,2]
[392478012,1761541274866,-316.87538028,0.00031481,2]
[392478013,1761541280222,-185.57792309,0.00031481,2]
[392478014,1761541281804,-203.35496338,0.00031481,2]
[392478015,1761541334088,-383.2,0.00030773,2]
[392478016,1761541337221,-186.250623,0.00030773,2]
[392478017,1761541337245,-92.07676301,0.00030928,2]
[392478018,1761541349234,-258.17058828,0.00030651,2]
[392478019,1761541350789,-273.67134671,0.00030651,2]
[392478020,1761541356474,-463.57410408,0.00030651,2]
[392478021,1761541358818,-228.17164035,0.00030651,2]
[392478022,1761541360414,-297.28514645,0.00030651,2]
[392478023,1761541365799,-154.74435891,0.00030651,2]
[392478024,1761541368794,-192.06017072,0.00030651,2]
[392478025,1761541371072,-318.50437293,0.00030651,2]
[392478026,1761541373248,-209.39728647,0.00030651,2]
[392478027,1761541374992,-63.45060374,0.00030651,2]
[392478028,1761541375019,-314.65945662,0.00030651,2]
[392478029,1761541378320,-185.75706546,0.00030651,2]
[392478030,1761541381207,-205.44018074,0.00030651,2]
[392478031,1761541383072,-193.97461119,0.00030651,2]
[392478032,1761541385908,-465.52396444,0.0003063,2]
[392478033,1761541390705,-183.24934158,0.0003063,2]
[392478034,1761541392334,-42.97243868,0.0003063,2]
[392478035,1761541392361,-279.46189932,0.00030651,2]
[392478036,1761541408574,-262.12365666,0.00030651,2]
[392478037,1761541411534,-163.21295387,0.00030651,2]
[392478038,1761541503571,2500.0,0.00031207,120]
[392478039,1761541503704,2500.0,0.00029511,120]
[392478040,1761541503800,2500.0,0.00030876,120]
[392478041,1761541513502,-179.76,0.0002837,2]
[392478042,1761541513524,-40.94468061,0.00030651,2]
[392478043,1761541513544,-64.43323699,0.00030928,2]
[392478044,1761541513569,-31.61274082,0.00031207,2]
[392478045,1761541515160,-163.83420644,0.00031207,2]
[392478046,1761541546124,-1.55646933,0.00031207,2]
[392478047,1761541546146,-1211.45,0.00032126,2]
[392478048,1761541546168,-261.90755959,0.00032306,2]
[392478049,1761541603609,-205.8991315,0.00030743,2]
[392478050,1761541606292,-158.45030834,0.00030743,2]
[392478051,1761541609054,-240.5906297,0.00030743,2]
[392478052,1761541612970,-184.73028565,0.00030743,2]
[392478054,1761541615864,-198.46971435,0.00030743,2]
[392478055,1761541618019,-222.29365977,0.00030743,2]
[392478056,1761541621685,-215.60634023,0.00030743,2]
[392478057,1761541623710,-316.60898854,0.00030743,2]
[392478058,1761541628756,-204.23400568,0.00030743,2]
[392478059,1761541631580,-281.67319378,0.00030743,2]
[392478060,1761541636085,-1938.21992436,0.00030743,2]
[392478061,1761541636106,-548.261761,0.00032144,2]
[392478062,1761541636138,-299.66705161,0.00032306,2]
[392478063,1761541636167,-287.05960266,0.00032306,2]
[392478064,1761541636193,-300.0,0.00032468,3]
[392478065,1761541636217,-400.0,0.00032468,2]
[392478066,1761541636246,-1600.0,0.00032469,3]
[392478067,1761541636271,-1600.0,0.00032469,3]
[392478068,1761541636298,-354.68539392,0.00032469,3]
[392478070,1761541666604,150.0,0.00025,2]
[392478072,1761541765090,-378.74885326,0.00031355,2]
[392478073,1761541771179,-565.19604734,0.00031355,2]
[392478074,1761541771199,-24085.0,0.000322,2]
[392478075,1761541771220,-400.0,0.00032399,2]
[392478076,1761541771240,-45.31460608,0.00032469,3]
[392478077,1761541771259,-303.0,0.00032469,3]
[392478078,1761541771279,-225.8392748,0.00032509,2]
[392478079,1761541771298,-1600.0,0.00032599,3]
[392478080,1761541771317,-5515.0,0.000327,3]
[392478081,1761541771337,-2066.2656241,0.00032749,2]
[392478082,1761541771358,-153.0,0.00032877,30]
[392478083,1761541771378,-1211.45,0.000331,2]
[392478084,1761541771402,-924.2265677,0.00033144,2]
[392478085,1761541771426,-5515.0,0.000332,5]
[392478086,1761541771446,-600.0,0.00033298,2]
[392478087,1761541771464,-500.0,0.00033299,7]
[392478088,1761541771488,-500.0,0.00033299,7]
[392478089,1761541771509,-500.0,0.00033299,7]
[392478090,1761541771528,-500.0,0.00033299,7]
[392478091,1761541771547,-500.0,0.00033299,7]
[392478092,1761541771568,-500.0,0.00033299,7]
[392478093,1761541771589,-500.0,0.00033299,7]
[392478094,1761541771608,-192.19264924,0.00033299,7]
[392478095,1761541771630,-500.0,0.00033299,7]
[392478096,1761541771651,-500.0,0.00033299,7]
[392478097,1761541771672,-500.0,0.00033299,7]
[392478098,1761541771693,-500.0,0.00033299,7]
[392478099,1761541771714,-500.0,0.00033299,7]
[392478100,1761541771738,-500.0,0.00033299,7]
[392478101,1761541771760,-500.0,0.00033299,7]
[392478102,1761541771783,-500.0,0.00033299,7]
[392478103,1761541771804,-500.0,0.00033299,7]
[392478104,1761541771829,-500.0,0.00033299,7]
[392478105,1761541771851,-500.0,0.00033299,7]
[392478106,1761541771876,-500.0,0.00033299,7]
[392478107,1761541771898,-500.0,0.00033299,7]
[392478108,1761541771920,-518.43181239,0.00033299,7]
[392478109,1761541771941,-500.0,0.00033299,7]
[392478110,1761541771962,-500.0,0.00033299,7]
[392478111,1761541771989,-500.0,0.00033299,7]
[392478112,1761541772011,-500.0,0.00033299,7]
[392478113,1761541772030,-719.14,0.00033399,14]
[392478114,1761541772055,-739.23977271,0.00033663,2]
[392478115,1761541772074,-719.14,0.00033673,14]
[392478116,1761541772095,-719.14,0.00033947,14]
[392478117,1761541772118,-1211.45,0.00034074,2]
[392478118,1761541772138,-719.14,0.00034221,14]
[392478119,1761541772159,-719.14,0.00034495,14]
[392478120,1761541772178,-719.14316012,0.00034769,14]
[392478121,1761541772198,-1000.0,0.000348,2]
[392478122,1761541772219,-560.0,0.00034833,2]
[392478123,1761541772240,-560.0,0.00034905,3]
[392478124,1761541772259,-154.52263192,0.00034964,4]
[392478125,1761541772413,-464.0,0.0003504,3]
[392478126,1761541772435,-1211.45,0.00035047,2]
[392478127,1761541772456,-2240.0,0.00035049,3]
[392478128,1761541772486,-433.99336788,0.0003506,2]
[392478129,1761541772508,-6009.22,0.00035455,2]
[392478130,1761541772530,-197.87,0.00035455,2]
[392478131,1761541772551,-150.99,0.00035455,2]
[392478132,1761541772571,-14649.19,0.00035455,2]
[392478133,1761541772591,-5693.95,0.00035455,2]
[392478134,1761541772611,-1587.18,0.00035455,2]
[392478135,1761541772632,-6467.97,0.00035455,2]
[392478136,1761541772652,-1950.47,0.00035455,2]
[392478137,1761541772672,-9999.99,0.00035455,2]
[392478138,1761541772693,-2549.45025437,0.00035537,120]
[392478139,1761541772724,-150.0,0.00035559,2]
[392478140,1761541772744,-200.0,0.00035559,2]
[392478141,1761541772763,-150.0,0.00035753,2]
[392478142,1761541772788,-188.0,0.00035797,2]
[392478143,1761541772808,-200.0,0.00035919,2]
[392478144,1761541772833,-1000.0,0.00035948,2]
[392478145,1761541772852,-11541.34,0.00035984,2]
[392478146,1761541772874,-1600.0,0.00036001,120]
[392478147,1761541772897,-1211.45,0.00036021,2]
[392478148,1761541772919,-222.0,0.00036057,2]
[392478149,1761541772938,-225.8392748,0.00036068,2]
[392478150,1761541772957,-530.15,0.00036082,10]
[392478151,1761541772977,-300.0,0.00036096,2]
[392478152,1761541772996,-2000.0,0.000362,2]
[392478153,1761541773019,-186.0,0.0003621,120]
[392478154,1761541773043,-186.0,0.00036233,7]
[392478155,1761541773064,-2066.2656241,0.00036253,2]
[392478156,1761541773085,-15802.9288646,0.0003626,2]
[392478157,1761541773104,-253.2464507,0.00036261,2]
[392478158,1761541773127,-186.0,0.00036279,7]
[392478159,1761541773148,-2256.92112349,0.00036287,2]
[392478160,1761541773167,-854.9803819,0.00036387,2]
[392478161,1761541773188,-929.7334367,0.00036398,2]
[392478162,1761541773208,-1020.39,0.00036571,2]
[392478163,1761541773230,-924.2265677,0.00036591,2]
[392478164,1761541773252,-186.0,0.00036984,2]
[392478165,1761541773272,-1211.45,0.00036994,2]
[392478166,1761541773294,-428.0,0.00037033,120]
[392478167,1761541773318,-2256.92112343,0.00037115,2]
[392478168,1761541773343,-168.0,0.00037132,7]
[392478169,1761541773364,-169.93632099,0.000372,120]
[392478170,1761541773384,-156.28988312,0.00037203,15]
[392478171,1761541773404,-476.74869043,0.00037204,2]
[392478172,1761541773426,-168.0,0.00037263,2]
[392478173,1761541773447,-222.0,0.00037345,7]
[392478174,1761541773467,-166.66,0.0003739,2]
[392478175,1761541773487,-610.0,0.00037394,2]
[392478176,1761541773506,-783.0,0.00037449,2]
[392478177,1761541773526,-1008.38972952,0.00037463,2]
[392478178,1761541773546,-783.0,0.00037524,3]
[392478179,1761541773570,-207.4515706,0.0003766,2]
[392478180,1761541773591,-190.7719095,0.00037666,2]
[392478181,1761541773611,-839.6441152,0.00037667,2]
[392478182,1761541773630,-500.0,0.00037718,5]
[392478183,1761541773649,-503.82369895,0.00037718,5]
[392478184,1761541773667,-222.39143095,0.00037718,5]
[392478185,1761541773686,-500.0,0.00037718,5]
[392478186,1761541773705,-500.0,0.00037718,5]
[392478187,1761541773729,-549.0,0.00037814,2]
[392478188,1761541773750,-3135.0,0.00037833,3]
[392478189,1761541773772,-892.5,0.00037845,2]
[392478190,1761541773796,-500.0,0.000379,5]
[392478191,1761541773817,-500.0,0.000379,2]
[392478192,1761541773836,-500.0,0.000379,5]
[392478193,1761541773859,-428.0,0.00037924,7]
[392478194,1761541773886,-2256.92112343,0.00037942,2]
[392478195,1761541773910,-428.0,0.00037944,2]
[392478196,1761541773929,-839.6441152,0.00037971,2]
[392478197,1761541773950,-839.6441152,0.00038106,2]
[392478198,1761541773972,-1000.0,0.00038266,5]
[392478199,1761541773991,-1000.0,0.00038266,5]
[392478200,1761541774016,-1000.0,0.00038266,5]
[392478201,1761541774039,-500.0,0.00038267,5]
[392478202,1761541774059,-580.27025816,0.00038267,5]
[392478203,1761541774078,-502.85292496,0.00038267,3]
[392478204,1761541774098,-1000.0,0.00038448,2]
[392478205,1761541774120,-241.62464801,0.00038448,5]
[392478206,1761541774139,-429.61878183,0.00038448,5]
[392478207,1761541774159,-262.79897,0.0003847,2]
[392478208,1761541774179,-839.64411521,0.00038499,2]
[392478209,1761541774198,-1000.0,0.000385,2]
[392478210,1761541774219,-200.0,0.000385,14]
[392478211,1761541774242,-168.0,0.00038585,7]
[392478212,1761541774262,-7655.36006213,0.000386,2]
[392478213,1761541774282,-500.0,0.000386,14]
[392478214,1761541774302,-1425.0,0.00038634,2]
[392478215,1761541774322,-10827.86569498,0.00038673,2]
[392478216,1761541774342,-262.79898,0.0003868,2]
[392478217,1761541774363,-549.0,0.00038683,7]
[392478218,1761541774383,-152.0,0.00038687,3]
[392478219,1761541774404,-700.0,0.000387,14]
[392478220,1761541774428,-1425.0,0.00038706,2]
[392478221,1761541774450,-164.91129022,0.00038748,2]
[392478222,1761541774471,-165.14074576,0.00038748,15]
[392478223,1761541774490,-164.85814469,0.00038758,2]
[392478224,1761541774511,-164.55055547,0.00038758,2]
[392478225,1761541774532,-596.15501126,0.00038758,2]
[392478226,1761541774553,-2256.92112343,0.0003877,2]
[392478227,1761541774573,-1000.0,0.000388,14]
[392478228,1761541774592,-500.0,0.00038814,5]
[392478229,1761541774612,-1500.0,0.00038814,5]
[392478230,1761541774632,-502.37096136,0.00038814,5]
[392478231,1761541774655,-1000.0,0.00038815,5]
[392478232,1761541774674,-177.0,0.00038822,120]
[392478233,1761541774694,-5457.14549072,0.00038838,4]
[392478236,1761541832098,-151.0,0.00033333,2]
[392478237,1761541832109,-286.9,0.00033333,2]
[392478238,1761541832118,-151.0,0.00033424,2]
[392478239,1761541832129,-151.0,0.00033472,2]
[392478240,1761541832138,-168.38036015,0.000335,2]
[392478241,1761541832147,-150.0,0.000336,3]
[392478242,1761541832157,-278.19,0.00035559,2]
[392478243,1761541832167,-153.30198852,0.00038719,7]
[392478244,1761541832176,-788.32332586,0.00038748,11]
[392478245,1761541832186,-165.14074576,0.00038754,15]
[392478246,1761541832195,-1032.75618159,0.00038758,13]
[392478247,1761541832208,-400.0,0.00038837,5]
[392478248,1761541832218,-1600.0,0.00038837,5]
[392478249,1761541832228,-63021.01368798,0.00038838,4]
[392478250,1761541832239,-500.0,0.00038845,28]
[392478251,1761541832250,-27391.2636715,0.00038847,4]
[392478252,1761541832260,-500.0,0.00038848,2]
[392478253,1761541832269,-104757.91125058,0.00038848,4]
[392478254,1761541832281,-13417.22905839,0.00038848,4]
[392478255,1761541832291,-11304.12637932,0.00038848,4]
[392478290,1761541838025,-500.0,0.00038837,15]
[392478292,1761541838035,-224.27020138,0.00038837,15]
[392478294,1761541838044,-500.0,0.00038837,15]
[392478296,1761541838055,-15233.07993296,0.00038848,4]
[392478357,1761541840223,-2629.84549351,0.00038848,4]
[392478358,1761541840236,-9311.6165946,0.00038848,4]
[392478359,1761541841508,-1.6e-07,0.00038848,4]
[392478360,1761541841520,-76171.93249848,0.00038848,4]
[392478361,1761541841530,-72076.66086,0.00038848,4]
[392478362,1761541841540,-429.9316512,0.00038854,2]
[392478363,1761541841549,-1914.7417057,0.00038857,2]
[392478364,1761541841559,-35959.861444,0.00038857,2]